[Event "51st Belgrade WGM 2019"]
[Site "Belgrade"]
[Date "2019.03.19"]
[Round "3.1"]
[White "Dimitrova, Aleksandra"]
[Black "Strutinskaia, Galina"]
[Result "1-0"]
[ECO "B56"]
[WhiteElo "2259"]
[BlackElo "2225"]
[Annotator "NA"]
[PlyCount "111"]
[EventDate "2019.03.17"]
[EventType "tourn"]
[EventCountry "SRB"]
[SourceTitle "playchess.com"]
[Source "ChessBase"]
[SourceQuality "1"]
[TimeControl "40/5400+30:1800+30"]

1. e4 {[%emt 0:00:00]} c5 {[%emt 0:00:00]} 2. Nf3 {[%emt 0:00:00]} d6 {[%emt 0:00:00]} 3. d4 {[%emt 0:00:00]} cxd4 {[%emt 0:00:00]} 4. Nxd4 {[%emt 0:00:00]} Nf6 {[%emt 0:00:00]} 5. Nc3 {[%emt 0:00:00]} a6 {[%emt 0:00:00]} 6. Nb3 {[%emt 0:00:07]} Nc6 {[%emt 0:01:43]} 7. Be3 {[%emt 0:00:57] B56: Classical Sicilian: Unusual Lines} e6 {[%emt 0:03:37]} (7... g6 8. Nd5 Nxd5 9. exd5 Ne5 10. Bd4 Bh6 11. Be2 O-O 12. O-O b5 13. a4 b4 14. c3 Bb7 15. cxb4 Bxd5 {0-1 (29) Anand,V (2776)-Vachier Lagrave,M (2811) Bastia 2016}) 8. g4 {[%emt 0:01:27]} Be7 {[%emt 0:00:56]} 9. g5 {[%emt 0:03:06]} Nd7 {[%emt 0:00:31]} 10. f4 {[%emt 0:01:45]} b5 {[%emt 0:00:54]} 11. Bd3 $146 {[%emt 0:13:06]} ({Predecessor:} 11. Bg2 Bb7 12. O-O O-O 13. Qh5 Qc7 14. f5 Nce5 15. Nd4 exf5 16. Nxf5 {1-0 (24) Badmatsyrenov,O (2454)-Kopylov,A (1716) Ekaterinburg 2018}) 11... Bb7 {[%emt 0:03:17]} 12. Qg4 {[%emt 0:07:29]} Nb6 {[%emt 0:07:07]} 13. O-O-O {[%emt 0:04:26]} Qc7 {[%emt 0:02:08]} 14. Rhe1 {[%emt 0:08:25]} Nb4 {[%emt 0:08:57]} 15. Kb1 {[%emt 0:04:34]} Na4 {[%emt 0:05:11]} 16. Bd2 {[%emt 0:05:36]} Nxd3 {[%emt 0:02:25]} 17. cxd3 {[%emt 0:00:09]} Nc5 {[%emt 0:00:22]} 18. Nxc5 {[%emt 0:16:28]} dxc5 {[%emt 0:01:38]} 19. f5 {[%emt 0:00:47]} Qd7 {[%emt 0:01:42]} 20. Be3 {[%emt 0:02:31]} b4 {[%emt 0:02:41]} 21. Ne2 {[%emt 0:03:38]} e5 {[%emt 0:01:16]} 22. Qg1 {[%emt 0:09:46]} c4 {[%emt 0:07:15]} 23. dxc4 {[%emt 0:01:16]} Bxe4+ {[%emt 0:00:09]} 24. Ka1 {[%emt 0:00:07]} Qc6 {[%emt 0:00:36]} 25. Ng3 {[%emt 0:02:30]} Bf3 {[%emt 0:05:13]} 26. Rd2 {[%emt 0:02:32]} b3 {[%emt 0:01:38]} 27. c5 {[%emt 0:01:20]} f6 {[%emt 0:04:18]} 28. gxf6 {[%emt 0:01:04]} Bxf6 {[%emt 0:00:45]} 29. Rd6 {[%emt 0:00:58]} Qa4 {[%emt 0:01:35]} 30. a3 {[%emt 0:01:19]} Kf7 {[%emt 0:03:25]} 31. Qf2 {[%emt 0:00:57]} e4 {[%emt 0:03:02]} 32. Bd4 {[%emt 0:00:21]} Rhe8 {[%emt 0:02:45]} 33. Bxf6 {[%emt 0:01:05]} gxf6 {[%emt 0:00:14]} 34. Qd2 {[%emt 0:01:15]} e3 {[%emt 0:02:38]} 35. Rxe3 {[%emt 0:05:44]} Qf4 {[%emt 0:01:02]} 36. Rxb3 {[%emt 0:00:40]} Qxd2 {[%emt 0:00:39]} 37. Rxd2 {[%emt 0:00:02]} Bc6 {[%emt 0:01:49]} 38. Rb6 {[%emt 0:00:43]} Bb5 {[%emt 0:00:37]} 39. Rdd6 {[%emt 0:01:25]} Re5 {[%emt 0:01:23]} 40. Rxf6+ {[%emt 0:01:00]} Kg8 {[%emt 0:00:16]} 41. b4 {[%emt 0:31:03]} Re3 {[%emt 0:30:42]} 42. Kb2 {[%emt 0:00:00]} Bc4 {[%emt 0:00:00]} 43. c6 {[%emt 0:00:00]} Rc8 {[%emt 0:00:00]} 44. a4 {[%emt 0:00:00]} h5 {[%emt 0:00:00]} 45. Rg6+ {[%emt 0:00:00]} Kf8 $18 {[%emt 0:00:00]} 46. Nxh5 {[%emt 0:00:00]} Rb3+ {[%emt 0:00:00]} 47. Kc2 {[%emt 0:00:00]} Rh3 {[%emt 0:00:00]} 48. Nf4 {[%emt 0:00:00]} Rxh2+ {[%emt 0:00:00]} 49. Kc3 {[%emt 0:00:00]} Bf7 {[%emt 0:00:00]} 50. Ne6+ {[%emt 0:00:00]} Ke8 {[%emt 0:00:00]} 51. Rg7 {[%emt 0:00:00]} Rh5 {[%emt 0:00:00]} 52. Ng5 {[%emt 0:00:00]} Bd5 {[%emt 0:00:00]} 53. c7 {[%emt 0:00:00]} Rh4 {[%emt 0:00:00]} 54. Kd3 {[%emt 0:00:39]} Rc4 {[%emt 0:00:00]} 55. Rh6 {[%emt 0:01:44]} Kf8 {[%emt 0:00:00]} 56. f6 {[%emt 0:00:22]} 1-0

[Event "51st Belgrade WGM 2019"]
[Site "Belgrade"]
[Date "2019.03.19"]
[Round "3.4"]
[White "Drljevic, Ljilja"]
[Black "Benderac, Ana"]
[Result "1/2-1/2"]
[ECO "B08"]
[WhiteElo "2188"]
[BlackElo "2204"]
[Annotator "NA"]
[PlyCount "23"]
[EventDate "2019.03.17"]
[EventType "tourn"]
[EventCountry "SRB"]
[SourceTitle "playchess.com"]
[Source "ChessBase"]
[SourceQuality "1"]
[TimeControl "40/5400+30:1800+30"]

1. e4 {[%emt 0:00:00]} d6 {[%emt 0:00:00]} 2. d4 {[%emt 0:00:00]} Nf6 {[%emt 0:00:16]} 3. Nc3 {[%emt 0:00:30]} c6 {[%emt 0:00:19]} 4. Nf3 {[%emt 0:03:18]} g6 {[%emt 0:02:45]} 5. h3 {[%emt 0:01:10]} Bg7 {[%emt 0:00:14]} 6. Be2 {[%emt 0:01:31]} O-O {[%emt 0:00:29]} 7. O-O {[%emt 0:00:09]} Qc7 {[%emt 0:03:49]} 8. a4 {[%emt 0:04:57]} a5 {[%emt 0:07:43]} 9. Be3 {[%emt 0:00:27]} Na6 {[%emt 0:02:33]} 10. Qd2 {[%emt 0:02:00]} Nb4 {[%emt 0:01:30]} 11. Rad1 {[%emt 0:03:25]} Re8 {[%emt 0:02:01]} 12. Rfe1 {[%emt 0:01:16]} 1/2-1/2

[Event "51st Belgrade WGM 2019"]
[Site "Belgrade"]
[Date "2019.03.19"]
[Round "3.5"]
[White "Srdanovic, Jovana"]
[Black "Prudnikova, Svetlana"]
[Result "0-1"]
[ECO "A61"]
[WhiteElo "2077"]
[BlackElo "2233"]
[Annotator "NA"]
[PlyCount "86"]
[EventDate "2019.03.17"]
[EventType "tourn"]
[EventCountry "SRB"]
[SourceTitle "playchess.com"]
[Source "ChessBase"]
[SourceQuality "1"]
[TimeControl "40/5400+30:1800+30"]

1. d4 {[%emt 0:00:00]} Nf6 {[%emt 0:00:00]} 2. c4 {[%emt 0:00:00]} e6 {[%emt 0:00:04]} 3. Nc3 {[%emt 0:00:00]} c5 {[%emt 0:00:31]} 4. d5 {[%emt 0:00:03]} exd5 {[%emt 0:00:38]} 5. cxd5 {[%emt 0:00:27]} d6 {[%emt 0:00:05]} 6. Bf4 {[%emt 0:01:45]} g6 {[%emt 0:03:31]} 7. Nf3 {[%emt 0:00:59]} Bg7 {[%emt 0:05:15]} 8. e3 {[%emt 0:00:23] A61: Modern Benoni: Nf3 without early e4} (8. Qa4+ Bd7 9. Qb3 Qc7 10. e4 O-O 11. Be2 a6 12. a4 Bg4 13. h3 Bxf3 14. Bxf3 Nfd7 15. O-O Ne5 16. Be2 Nbd7 17. Be3 c4 18. Qa2 f5 19. f4 Nf7 20. exf5 {1-0 (74) Postny,E (2615)-Akopian,V (2650) St Petersburg 2018}) 8... O-O {[%emt 0:01:15]} 9. Be2 {[%emt 0:05:33]} Nh5 {[%emt 0:03:52]} 10. Bg5 {[%emt 0:01:38]} f6 {[%emt 0:01:43]} 11. Bh4 {[%emt 0:00:31]} g5 {[%emt 0:00:41]} 12. Nd2 {[%emt 0:02:31]} gxh4 {[%emt 0:06:55]} 13. Bxh5 {[%emt 0:00:14]} f5 {[%emt 0:05:31]} 14. Be2 $146 {[%emt 0:29:59]} ({Predecessor:} 14. f4 Nd7 15. Qc2 Nf6 {0-1 (36) Andreasen,J (2215)-Thybo,J (2358) Denmark 2017}) 14... Nd7 {[%emt 0:03:43]} 15. h3 {[%emt 0:06:56]} f4 {[%emt 0:15:49]} 16. e4 {[%emt 0:08:21]} Ne5 {[%emt 0:00:54]} 17. Qc2 {[%emt 0:11:54]} a6 {[%emt 0:03:27]} 18. Nf3 {[%emt 0:08:25]} b5 {[%emt 0:01:15]} 19. a4 {[%emt 0:03:38]} Bd7 {[%emt 0:19:06]} 20. O-O {[%emt 0:03:50]} b4 {[%emt 0:06:37]} 21. Nb1 {[%emt 0:02:08]} Qf6 {[%emt 0:04:49]} 22. Ra2 {[%emt 0:02:49]} c4 {[%emt 0:03:52]} 23. b3 {[%emt 0:00:38]} c3 {[%emt 0:00:50]} 24. Re1 {[%emt 0:01:25]} Kh8 {[%emt 0:00:25]} 25. Nxe5 {[%emt 0:00:18]} Qxe5 {[%emt 0:00:03]} 26. Bf3 {[%emt 0:00:05]} a5 {[%emt 0:02:29]} 27. Qc1 {[%emt 0:01:24]} Bf6 {[%emt 0:01:27]} 28. Kh2 {[%emt 0:00:37]} Rg8 {[%emt 0:00:16]} 29. Rc2 {[%emt 0:01:07]} Rg5 {[%emt 0:01:11]} 30. Qd1 {[%emt 0:00:34]} Rc8 {[%emt 0:00:36]} 31. Qe2 {[%emt 0:00:22]} Rcg8 {[%emt 0:00:41]} 32. Rg1 {[%emt 0:00:47]} Qe8 {[%emt 0:02:38]} 33. Rcc1 {[%emt 0:02:29]} Be5 {[%emt 0:00:48]} 34. Qc4 {[%emt 0:00:44]} (34. Nd2 {only move.} cxd2 35. Qxd2) 34... Qb8 {[%emt 0:01:13]} 35. Kh1 {[%emt 0:00:25]} Rc8 {[%emt 0:01:48]} 36. Qd3 $19 {[%emt 0:01:34]} Rc7 {[%emt 0:00:58]} 37. Qc2 {[%emt 0:00:48]} Bc8 {[%emt 0:01:21]} 38. Qe2 {[%emt 0:01:15]} Rcg7 {[%emt 0:00:20]} 39. Kh2 {[%emt 0:01:26]} Bd7 {[%emt 0:00:16]} 40. Qa6 {[%emt 0:00:20]} Qg8 {[%emt 0:00:43]} 41. Qf1 {[%emt 0:02:54]} Qc8 {[%emt 0:01:36]} 42. Qd3 {[%emt 0:02:12]} Bxh3 {[%emt 0:02:32]} 43. Kh1 {[%emt 0:03:07]} Qg8 {[%emt 0:03:25]} 0-1

[Event "51st Belgrade WGM 2019"]
[Site "Belgrade"]
[Date "2019.03.22"]
[Round "6.1"]
[White "Dimitrova, Aleksandra"]
[Black "Chelushkina, Irina"]
[Result "1/2-1/2"]
[ECO "B33"]
[WhiteElo "2259"]
[BlackElo "2277"]
[Annotator "NA"]
[PlyCount "53"]
[EventDate "2019.03.17"]
[EventType "tourn"]
[EventCountry "SRB"]
[SourceTitle "playchess.com"]
[Source "ChessBase"]
[SourceQuality "1"]
[TimeControl "40/5400+30:1800+30"]

1. e4 {[%emt 0:00:00]} c5 {[%emt 0:00:00]} 2. Nf3 {[%emt 0:00:00]} e6 {[%emt 0:00:00]} 3. d4 {[%emt 0:00:00]} cxd4 {[%emt 0:00:00]} 4. Nxd4 {[%emt 0:00:00]} Nf6 {[%emt 0:00:00]} 5. Nc3 {[%emt 0:00:00]} Nc6 {[%emt 0:00:28]} 6. Ndb5 {[%emt 0:00:07]} d6 {[%emt 0:00:05]} 7. Bf4 {[%emt 0:00:05]} e5 {[%emt 0:00:12]} 8. Bg5 {[%emt 0:00:07]} a6 {[%emt 0:00:03]} 9. Na3 {[%emt 0:00:04]} b5 {[%emt 0:00:21]} 10. Nd5 {[%emt 0:00:11]} Be7 {[%emt 0:00:04]} 11. Bxf6 {[%emt 0:00:05]} Bxf6 {[%emt 0:00:03]} 12. c3 {[%emt 0:00:07]} Bg5 {[%emt 0:03:03]} 13. Nc2 {[%emt 0:00:07]} O-O {[%emt 0:00:42]} 14. a4 {[%emt 0:01:40]} bxa4 {[%emt 0:02:36]} 15. Rxa4 {[%emt 0:00:06]} a5 {[%emt 0:00:02]} 16. Bc4 {[%emt 0:11:32]} Rb8 {[%emt 0:02:34]} 17. b3 {[%emt 0:01:34]} Kh8 {[%emt 0:00:27]} 18. h4 {[%emt 0:11:11]} Bh6 {[%emt 0:00:15]} 19. g4 {[%emt 0:01:50]} Bf4 {[%emt 0:00:30]} 20. Nce3 {[%emt 0:04:50]} Bd7 {[%emt 0:03:18]} 21. Ra2 {[%emt 0:06:43]} Be6 {[%emt 0:01:57]} 22. Kf1 {[%emt 0:11:37]} Ne7 {[%emt 0:11:25]} 23. Nxe7 {[%emt 0:10:33]} Qxe7 {[%emt 0:01:24]} 24. Nd5 {[%emt 0:00:27]} Qd7 {[%emt 0:01:37]} 25. f3 {[%emt 0:08:20]} h5 {[%emt 0:03:21]} 26. Rg1 {[%emt 0:02:36]} Qd8 {[%emt 0:03:48]} 27. g5 {[%emt 0:03:29]} 1/2-1/2

[Event "51st Belgrade WGM 2019"]
[Site "Belgrade"]
[Date "2019.03.22"]
[Round "6.2"]
[White "Djukic, Sandra"]
[Black "Drljevic, Ljilja"]
[Result "1/2-1/2"]
[ECO "D36"]
[WhiteElo "2157"]
[BlackElo "2188"]
[Annotator "NA"]
[PlyCount "21"]
[EventDate "2019.03.17"]
[EventType "tourn"]
[EventCountry "SRB"]
[SourceTitle "playchess.com"]
[Source "ChessBase"]
[SourceQuality "1"]
[TimeControl "40/5400+30:1800+30"]

1. d4 {[%emt 0:00:26]} d5 {[%emt 0:12:54]} 2. c4 {[%emt 0:00:05]} e6 {[%emt 0:00:18]} 3. Nc3 {[%emt 0:00:17]} Nf6 {[%emt 0:00:26]} 4. Nf3 {[%emt 0:00:44]} Be7 {[%emt 0:00:21]} 5. cxd5 {[%emt 0:00:07]} exd5 {[%emt 0:00:05]} 6. Bg5 {[%emt 0:00:06]} O-O {[%emt 0:00:14]} 7. e3 {[%emt 0:00:10]} c6 {[%emt 0:00:17]} 8. Qc2 {[%emt 0:00:08]} h6 {[%emt 0:00:41]} 9. Bh4 {[%emt 0:00:03]} Ne4 {[%emt 0:00:53]} 10. Bxe7 {[%emt 0:00:05]} Qxe7 {[%emt 0:00:05]} 11. Ng1 {[%emt 1:33:19]} 1/2-1/2

[Event "51st Belgrade WGM 2019"]
[Site "Belgrade"]
[Date "2019.03.22"]
[Round "6.3"]
[White "Strutinskaia, Galina"]
[Black "Srdanovic, Jovana"]
[Result "1-0"]
[ECO "E70"]
[WhiteElo "2225"]
[BlackElo "2077"]
[Annotator "NA"]
[PlyCount "65"]
[EventDate "2019.03.17"]
[EventType "tourn"]
[EventCountry "SRB"]
[SourceTitle "playchess.com"]
[Source "ChessBase"]
[SourceQuality "1"]
[TimeControl "40/5400+30:1800+30"]

1. c4 {[%emt 0:00:00]} g6 {[%emt 0:00:03]} 2. d4 {[%emt 0:00:59]} Bg7 {[%emt 0:00:09]} 3. Nc3 {[%emt 0:00:04]} Nf6 {[%emt 0:00:11]} 4. e4 {[%emt 0:00:10]} d6 {[%emt 0:00:05]} 5. Bd3 {[%emt 0:02:55]} O-O {[%emt 0:01:00]} 6. Nge2 {[%emt 0:00:03]} e5 {[%emt 0:01:17]} 7. d5 {[%emt 0:00:29]} Nbd7 {[%emt 0:01:14]} 8. O-O {[%emt 0:01:00]} Nc5 {[%emt 0:08:15]} 9. Bc2 {[%emt 0:00:08]} a5 {[%emt 0:00:05]} 10. Rb1 {[%emt 0:01:21]} Ne8 {[%emt 0:04:44]} 11. a3 {[%emt 0:01:24]} f5 {[%emt 0:06:24]} 12. exf5 {[%emt 0:00:45]} gxf5 {[%emt 0:15:10]} 13. f4 {[%emt 0:01:16]} e4 {[%emt 0:01:18]} 14. Be3 {[%emt 0:00:47]} Nf6 {[%emt 0:01:21]} 15. h3 {[%emt 0:01:55]} Qe7 {[%emt 0:04:48]} 16. Nd4 {[%emt 0:03:31]} Kh8 {[%emt 0:04:24]} 17. b4 {[%emt 0:02:28]} axb4 {[%emt 0:08:57]} 18. axb4 {[%emt 0:00:19]} Ra3 {[%emt 0:00:06]} 19. Ndb5 {[%emt 0:01:51]} Rxc3 {[%emt 0:00:42]} 20. Nxc3 {[%emt 0:00:05]} Ncd7 {[%emt 0:00:43]} 21. Nb5 {[%emt 0:01:48]} Nb8 {[%emt 0:04:04]} 22. c5 {[%emt 0:06:23]} Na6 {[%emt 0:01:52]} 23. cxd6 {[%emt 0:04:01]} cxd6 {[%emt 0:00:05]} 24. Qd2 {[%emt 0:01:45]} Bd7 {[%emt 0:03:22]} 25. Na7 {[%emt 0:01:06]} Nc7 {[%emt 0:01:06]} 26. Bb3 {[%emt 0:00:14]} Qf7 {[%emt 0:13:23]} 27. Rfd1 {[%emt 0:00:58]} Ra8 {[%emt 0:01:54]} 28. Rbc1 {[%emt 0:02:20]} Nb5 {[%emt 0:00:47]} 29. Nxb5 {[%emt 0:03:15]} Bxb5 {[%emt 0:00:04]} 30. Ra1 {[%emt 0:00:11]} Rg8 {[%emt 0:01:27]} 31. Ra7 {[%emt 0:02:13]} Ba6 {[%emt 0:04:32]} 32. Rc1 {[%emt 0:00:20]} Re8 {[%emt 0:03:44]} 33. Ba4 {[%emt 0:02:14]} 1-0

[Event "51st Belgrade WGM 2019"]
[Site "Belgrade"]
[Date "2019.03.22"]
[Round "6.4"]
[White "Voiska, Margarita"]
[Black "Prudnikova, Svetlana"]
[Result "1/2-1/2"]
[ECO "D35"]
[WhiteElo "2203"]
[BlackElo "2233"]
[Annotator "NA"]
[PlyCount "22"]
[EventDate "2019.03.17"]
[EventType "tourn"]
[EventCountry "SRB"]
[SourceTitle "playchess.com"]
[Source "ChessBase"]
[SourceQuality "1"]
[TimeControl "40/5400+30:1800+30"]

1. d4 {[%emt 0:00:00]} d5 {[%emt 0:01:07]} 2. c4 {[%emt 0:00:00]} e6 {[%emt 0:00:13]} 3. Nf3 {[%emt 0:00:21]} Nf6 {[%emt 0:00:07]} 4. cxd5 {[%emt 0:00:30]} exd5 {[%emt 0:00:06]} 5. Nc3 {[%emt 0:00:11]} c6 {[%emt 0:00:10]} 6. Bg5 {[%emt 0:00:25]} Be7 {[%emt 0:00:21]} 7. e3 {[%emt 0:00:11]} Bf5 {[%emt 0:00:12]} 8. Bd3 {[%emt 0:00:08]} Bxd3 {[%emt 0:00:10]} 9. Qxd3 {[%emt 0:00:09]} Nbd7 {[%emt 0:00:09]} 10. O-O {[%emt 0:00:08]} O-O {[%emt 0:00:07]} 11. Rab1 {[%emt 0:00:31]} Re8 {[%emt 0:01:08]} 1/2-1/2

[Event "51st Belgrade WGM 2019"]
[Site "Belgrade"]
[Date "2019.03.22"]
[Round "6.5"]
[White "Michelle Catherina, P."]
[Black "Benderac, Ana"]
[Result "1-0"]
[ECO "B90"]
[WhiteElo "2175"]
[BlackElo "2204"]
[Annotator "NA"]
[PlyCount "41"]
[EventDate "2019.03.17"]
[EventType "tourn"]
[EventCountry "SRB"]
[SourceTitle "playchess.com"]
[Source "ChessBase"]
[SourceQuality "1"]
[TimeControl "40/5400+30:1800+30"]

1. e4 {[%emt 0:01:42]} c5 {[%emt 0:00:00]} 2. Nf3 {[%emt 0:00:06]} d6 {[%emt 0:00:00]} 3. d4 {[%emt 0:00:05]} cxd4 {[%emt 0:00:00]} 4. Nxd4 {[%emt 0:00:03]} Nf6 {[%emt 0:00:04]} 5. Nc3 {[%emt 0:00:06]} a6 {[%emt 0:00:03]} 6. h3 {[%emt 0:00:06]} e5 {[%emt 0:00:32]} 7. Nb3 {[%emt 0:01:41]} Be6 {[%emt 0:01:09]} 8. f4 {[%emt 0:01:44]} Qc7 {[%emt 0:04:24]} 9. f5 {[%emt 0:08:38]} Bc4 {[%emt 0:03:31]} 10. g4 {[%emt 0:03:07]} h6 {[%emt 0:00:39]} 11. Be3 {[%emt 0:04:11]} Nbd7 {[%emt 0:02:14]} 12. Bg2 {[%emt 0:06:26]} b5 {[%emt 0:01:48]} 13. a3 {[%emt 0:04:59]} Rc8 {[%emt 0:12:47]} 14. Nd2 {[%emt 0:05:42]} d5 {[%emt 0:04:39]} 15. exd5 {[%emt 0:16:18]} b4 {[%emt 0:01:55]} 16. d6 {[%emt 0:05:35]} Qxd6 {[%emt 0:07:44]} 17. axb4 {[%emt 0:08:46]} Bd5 {[%emt 0:09:48]} 18. Bxd5 {[%emt 0:04:22]} Nxd5 {[%emt 0:00:33]} 19. Nde4 {[%emt 0:00:46]} N5f6 {[%emt 0:47:40]} 20. Nd2 Rxc3 {[%emt 0:00:30]} 21. bxc3 {[%emt 0:26:07]} 1-0

[Event "51st Belgrade WGM 2019"]
[Site "Belgrade"]
[Date "2019.03.23"]
[Round "7.1"]
[White "Drljevic, Ljilja"]
[Black "Dimitrova, Aleksandra"]
[Result "0-1"]
[ECO "A07"]
[WhiteElo "2188"]
[BlackElo "2259"]
[Annotator "NA"]
[PlyCount "84"]
[EventDate "2019.03.17"]
[EventType "tourn"]
[EventCountry "SRB"]
[SourceTitle "playchess.com"]
[Source "ChessBase"]
[SourceQuality "1"]
[TimeControl "40/5400+30:1800+30"]

1. g3 {[%emt 0:01:38]} d5 {[%emt 0:00:00]} 2. Bg2 {[%emt 0:00:07]} c6 {[%emt 0:00:00]} 3. Nf3 {[%emt 0:03:41]} Bg4 {[%emt 0:00:06]} 4. O-O {[%emt 0:00:33]} Nd7 {[%emt 0:00:27]} 5. c4 {[%emt 0:01:19] A07: Réti Opening: New York and Capablanca Systems} Bxf3 {[%emt 0:05:59]} 6. exf3 {[%emt 0:00:59]} dxc4 {[%emt 0:03:05]} 7. d3 $146 {[%emt 0:11:11]} ({Predecessor:} 7. Qe2 Nb6 8. Rd1 Qd3 9. Qe1 Nf6 10. a4 e6 11. a5 Nbd5 12. Na3 Bc5 {0-1 (29) Khismatullin,D (2617)-Vitiugov,N (2721) Sochi 2016}) 7... cxd3 {[%emt 0:02:56]} 8. Qxd3 {[%emt 0:00:55]} e6 {[%emt 0:03:34]} 9. Rd1 {[%emt 0:10:57]} Ngf6 {[%emt 0:01:28]} 10. Nc3 {[%emt 0:02:49]} Be7 {[%emt 0:04:37]} 11. f4 {[%emt 0:04:33]} g6 {[%emt 0:10:07]} 12. b4 {[%emt 0:04:04]} Nd5 {[%emt 0:06:00]} 13. Nxd5 {[%emt 0:15:27]} cxd5 {[%emt 0:01:49]} 14. f5 {[%emt 0:00:35]} Bf6 {[%emt 0:11:32]} 15. fxe6 {[%emt 0:11:30]} fxe6 {[%emt 0:01:52]} 16. Rb1 {[%emt 0:09:26]} O-O {[%emt 0:01:31]} 17. h4 {[%emt 0:03:55]} Rf7 {[%emt 0:05:24]} 18. Bh6 {[%emt 0:05:39]} Bg7 {[%emt 0:02:58]} 19. Bg5 {[%emt 0:00:36]} Qf8 {[%emt 0:02:13]} 20. Qe2 {[%emt 0:00:50]} Re8 {[%emt 0:02:34]} 21. Rbc1 {[%emt 0:01:32]} Ne5 {[%emt 0:03:33]} 22. Be3 {[%emt 0:03:09]} b6 {[%emt 0:03:26]} 23. a3 {[%emt 0:00:49]} Nc4 {[%emt 0:02:48]} 24. Rd3 {[%emt 0:02:02]} Bh6 {[%emt 0:04:20]} 25. Bxh6 {[%emt 0:00:44]} Qxh6 {[%emt 0:00:02]} 26. Re1 {[%emt 0:00:17]} Rfe7 {[%emt 0:09:11]} 27. Bh3 {[%emt 0:00:56]} Qg7 {[%emt 0:00:55]} 28. f4 {[%emt 0:01:55]} b5 {[%emt 0:03:05]} 29. Qf2 {[%emt 0:00:38]} a6 {[%emt 0:03:06]} 30. Re2 {[%emt 0:00:29]} Qa1+ {[%emt 0:00:37]} 31. Kh2 {[%emt 0:00:09]} Qf6 {[%emt 0:00:40]} 32. Qf3 {[%emt 0:01:15]} Kg7 {[%emt 0:00:32]} 33. Bg2 {[%emt 0:00:32]} Rd8 {[%emt 0:01:20]} 34. Qf2 {[%emt 0:01:04]} d4 {[%emt 0:01:11]} 35. Qe1 {[%emt 0:00:25]} e5 {[%emt 0:01:30]} 36. Re4 {[%emt 0:00:23]} Rde8 {[%emt 0:01:19]} 37. fxe5 {[%emt 0:00:46]} Nxe5 {[%emt 0:00:04]} 38. Rdxd4 {[%emt 0:00:37] [#]} Ng4+ $19 {[%emt 0:00:30] Pin} 39. Kh1 {[%emt 0:00:30]} Nf2+ {[%emt 0:01:08]} 40. Kh2 {[%emt 0:00:12]} Nxe4 {[%emt 0:00:17]} 41. Rxe4 {[%emt 0:30:28]} Rxe4 {[%emt 0:30:10]} 42. Bxe4 {[%emt 0:00:08]} Qd4 {[%emt 0:01:15]} 0-1

[Event "51st Belgrade WGM 2019"]
[Site "Belgrade"]
[Date "2019.03.24"]
[Round "8.2"]
[White "Chelushkina, Irina"]
[Black "Michelle Catherina, P."]
[Result "0-1"]
[ECO "C44"]
[WhiteElo "2277"]
[BlackElo "2175"]
[Annotator "NA"]
[PlyCount "58"]
[EventDate "2019.03.17"]
[EventType "tourn"]
[EventCountry "SRB"]
[SourceTitle "playchess.com"]
[Source "ChessBase"]
[SourceQuality "1"]
[TimeControl "40/5400+30:1800+30"]

1. e4 {[%emt 0:00:00]} e5 {[%emt 0:02:18]} 2. Nf3 {[%emt 0:00:00]} Nc6 {[%emt 0:00:06]} 3. d3 {[%emt 0:00:00]} g6 {[%emt 0:00:08]} 4. Be2 {[%emt 0:00:00]} Bg7 {[%emt 0:00:27]} 5. O-O {[%emt 0:00:00]} Nge7 {[%emt 0:00:21]} 6. c3 {[%emt 0:00:00]} O-O {[%emt 0:00:37]} 7. a4 {[%emt 0:01:18]} a5 {[%emt 0:02:11]} 8. Na3 {[%emt 0:00:06]} d5 {[%emt 0:06:27]} 9. Nb5 {[%emt 0:00:17]} h6 {[%emt 0:03:22]} 10. Be3 {[%emt 0:10:11]} Be6 {[%emt 0:03:00]} 11. Qc1 {[%emt 0:01:15]} Kh7 {[%emt 0:07:50]} 12. Nd2 {[%emt 0:02:05]} f5 {[%emt 0:05:42]} 13. f3 {[%emt 0:00:26]} Qd7 {[%emt 0:05:48]} 14. Bf2 {[%emt 0:13:28]} Rad8 {[%emt 0:04:36]} 15. c4 {[%emt 0:06:29]} dxe4 {[%emt 0:07:00]} 16. fxe4 {[%emt 0:01:12]} Nb4 {[%emt 0:02:09]} 17. Nb3 {[%emt 0:07:31]} b6 {[%emt 0:09:25]} 18. Rd1 {[%emt 0:00:35]} fxe4 {[%emt 0:11:34]} 19. dxe4 {[%emt 0:00:10]} Qc6 {[%emt 0:01:09]} 20. Rxd8 {[%emt 0:00:22]} Rxd8 {[%emt 0:00:02]} 21. Qf1 {[%emt 0:09:31]} Ng8 {[%emt 0:06:52]} 22. Rc1 {[%emt 0:13:39]} Nf6 {[%emt 0:03:29]} 23. h3 {[%emt 0:14:03]} Nxe4 {[%emt 0:09:38]} 24. Bf3 {[%emt 0:00:04]} Nd3 {[%emt 0:03:53]} 25. Rc2 {[%emt 0:09:21]} Ndxf2 {[%emt 0:01:39]} 26. Qxf2 {[%emt 0:00:37]} Rd1+ {[%emt 0:00:43]} 27. Kh2 {[%emt 0:00:01]} Rh1+ {[%emt 0:00:28]} 28. Kxh1 {[%emt 0:00:09]} Nxf2+ {[%emt 0:00:04]} 29. Rxf2 {[%emt 0:00:01]} e4 {[%emt 0:02:23]} 0-1